bitfinex/quotes_BTCUSD_20220731
["timestamp","ask_amount","ask_price","bid_price","bid_amount"]
[1659236744964,0.043,23745.0,23742.0,0.000526]
[1659236745174,0.043,23745.0,23740.0,0.010526]
[1659236745393,0.013323,23744.0,23740.0,0.010526]
[1659236745627,0.0154743,23743.0,23740.0,0.010526]
[1659236745870,0.013323,23742.0,23740.0,0.010526]
[1659236746083,0.12786078,23741.0,23740.0,0.010526]
[1659236746305,0.12786078,23741.0,23737.0,0.012727]
[1659236746536,0.12786078,23741.0,23737.0,0.42009668]
[1659236746749,0.013323,23740.0,23737.0,0.42009668]
[1659236746968,0.05,23739.0,23737.0,0.42009668]
[1659236747192,0.009,23741.0,23737.0,0.42009668]
[1659236747411,0.009,23741.0,23737.0,0.41998433]
[1659236747844,0.009,23741.0,23737.0,0.0022]
[1659236747845,0.12786078,23738.0,23737.0,0.0022]
[1659236747853,0.42058033,23740.0,23737.0,0.0022]
[1659236748088,0.97786078,23738.0,23737.0,0.0022]
[1659236748309,1.20181178,23738.0,23737.0,0.0022]
[1659236748835,0.77786078,23737.0,23734.0,0.00883]
[1659236749053,0.013323,23738.0,23734.0,0.00883]
[1659236749054,0.047,23738.0,23734.0,0.00883]
[1659236749278,0.013323,23737.0,23734.0,0.00883]
[1659236749507,0.013323,23737.0,23734.0,0.00383]
[1659236749731,0.013323,23737.0,23735.0,0.01919887]
[1659236749967,0.047,23738.0,23734.0,0.00383]
[1659236749968,0.0154743,23736.0,23734.0,0.00383]
[1659236750235,0.28249143,23736.0,23734.0,0.00383]
[1659236750490,0.829185,23743.0,23736.0,0.01660266]
[1659236750757,0.013323,23742.0,23736.0,0.42385999]
[1659236750973,1.23644233,23743.0,23736.0,0.42385999]
[1659236751212,0.013323,23742.0,23736.0,0.42385999]
[1659236751440,1.02585733,23743.0,23736.0,0.42385999]
[1659236751674,0.013323,23742.0,23736.0,0.42385999]
[1659236751901,0.3,23744.0,23737.0,0.40725733]
[1659236752146,0.013323,23743.0,23741.0,0.00607466]
[1659236752410,2.94863966,23750.0,23742.0,0.02527353]
[1659236752411,1.075022,23750.0,23742.0,0.02527353]
[1659236752644,1.075022,23750.0,23743.0,0.010525]
[1659236752645,0.42058033,23749.0,23743.0,0.010525]
[1659236752868,0.40725733,23749.0,23743.0,0.010525]
[1659236753112,0.013323,23748.0,23743.0,0.010525]
[1659236753336,0.40725733,23749.0,23744.0,0.00607466]
[1659236753578,0.013323,23748.0,23744.0,0.01659966]
[1659236753808,0.0154743,23747.0,23744.0,0.01659966]
[1659236754074,0.70725733,23749.0,23744.0,0.01659966]
[1659236754291,0.013323,23748.0,23744.0,0.01659966]
[1659236754510,0.70725733,23749.0,23744.0,0.01659966]
[1659236754728,0.013323,23748.0,23744.0,0.01659966]
[1659236754969,0.0154743,23747.0,23744.0,0.01659966]
[1659236755191,0.0287973,23747.0,23744.0,0.01659966]
[1659236755671,0.05,23746.0,23744.0,0.01659966]
[1659236755884,0.05665808,23747.0,23744.0,0.01659966]
[1659236756099,0.0287973,23747.0,23744.0,0.01659966]
[1659236756567,0.05,23746.0,23744.0,0.01659966]
[1659236756787,0.05,23745.0,23744.0,0.01659966]
[1659236757004,0.04118378,23746.0,23744.0,0.01659966]
[1659236758168,0.04118378,23746.0,23740.0,0.010526]
[1659236758169,0.40725733,23745.0,23740.0,0.010526]
[1659236758386,0.53511811,23745.0,23737.0,0.57681368]
[1659236758602,0.40725733,23744.0,23737.0,0.00011368]
[1659236759048,0.40725733,23744.0,23738.0,0.010527]
[1659236760229,0.013323,23743.0,23738.0,0.010527]
[1659236760500,0.40725733,23743.0,23738.0,0.010527]
[1659236760715,0.12786078,23739.0,23736.0,0.00014444]
[1659236760939,0.82786078,23737.0,23736.0,0.00014444]
[1659236761161,0.84118378,23737.0,23736.0,0.00014444]
[1659236761619,0.14118378,23737.0,23733.0,0.012729]
[1659236761836,0.12786078,23737.0,23733.0,0.012729]
[1659236762530,0.013323,23736.0,23733.0,0.012729]
[1659236762761,0.40725733,23737.0,23733.0,0.0022]
[1659236763054,0.05,23736.0,23734.0,0.4264562]
[1659236763261,0.06686078,23737.0,23736.0,0.00607466]
[1659236763262,0.039,23737.0,23736.0,0.00607466]
[1659236763490,0.039,23737.0,23736.0,0.30951166]
[1659236763951,0.039,23737.0,23736.0,0.31007163]
[1659236764172,1.10002758,23743.0,23736.0,0.31007163]
[1659236764395,0.013323,23742.0,23738.0,0.010528]
[1659236764637,0.05,23741.0,23738.0,0.010528]
[1659236764854,0.013323,23740.0,23739.0,0.02527353]
[1659236765108,0.48625733,23743.0,23739.0,0.00607466]
[1659236765357,0.05,23742.0,23739.0,0.00607466]
[1659236765628,0.079,23743.0,23740.0,0.21051]
[1659236765853,0.079,23743.0,23742.0,0.60607466]
[1659236766080,0.079,23743.0,23742.0,1.20951166]
[1659236766320,0.6145,23752.0,23742.0,1.20951166]
[1659236766544,0.42058033,23750.0,23744.0,0.021048]
[1659236766783,0.42325733,23749.0,23744.0,0.010524]
[1659236767034,0.42058033,23748.0,23744.0,0.010524]
[1659236767257,0.40725733,23748.0,23744.0,0.010524]
[1659236767488,0.0287973,23747.0,23744.0,0.010524]
[1659236767723,0.04333508,23747.0,23744.0,0.010524]
[1659236767969,0.013323,23746.0,23744.0,0.010524]
[1659236768226,0.04118378,23746.0,23744.0,0.010524]
[1659236768676,0.12786078,23745.0,23741.0,0.010526]
[1659236768902,0.0287973,23744.0,23739.0,0.010527]
[1659236769121,0.45425733,23746.0,23739.0,0.41778433]
[1659236769336,0.013323,23745.0,23739.0,0.41778433]
[1659236769559,0.45425733,23746.0,23739.0,0.41778433]
[1659236769780,0.013323,23745.0,23739.0,0.41778433]
[1659236769999,0.45425733,23746.0,23739.0,0.41778433]
[1659236770235,0.013323,23745.0,23739.0,0.41778433]
[1659236770450,0.2879,23750.0,23743.0,0.00607466]
[1659236770671,0.42058033,23749.0,23744.0,0.010526]
[1659236770901,0.40725733,23748.0,23744.0,0.010526]
[1659236771134,0.079,23745.0,23744.0,0.010526]
[1659236772300,0.0154743,23747.0,23740.0,0.61776733]
[1659236772536,0.40725733,23748.0,23741.0,0.40725733]
[1659236772761,0.40725733,23748.0,23744.0,0.010526]
[1659236772983,0.1087973,23747.0,23744.0,0.010526]
[1659236773299,0.12333508,23747.0,23744.0,0.010526]
[1659236773644,0.013323,23746.0,23744.0,0.010526]
[1659236774087,0.12333508,23747.0,23744.0,0.010526]
[1659236774330,0.063323,23746.0,23744.0,0.010526]
[1659236774597,0.04118378,23746.0,23744.0,0.02972487]
[1659236774826,0.04118378,23746.0,23744.0,0.010526]
[1659236775020,0.12118378,23746.0,23744.0,0.010526]
[1659236775244,0.05,23745.0,23744.0,0.010526]
[1659236775464,0.10786078,23746.0,23744.0,0.010526]
[1659236775732,0.08,23746.0,23744.0,0.02972487]
[1659236776414,0.013323,23745.0,23744.0,0.010526]
[1659236776619,0.40725733,23748.0,23744.0,0.02972487]
[1659236776837,0.013323,23747.0,23744.0,0.4369822]
[1659236777091,0.08,23746.0,23745.0,0.40725733]
[1659236778183,0.000297,23751.0,23745.0,0.40725733]
[1659236778466,0.013323,23750.0,23745.0,0.40725733]
[1659236778691,0.013323,23750.0,23746.0,0.021046]
[1659236778912,0.013323,23750.0,23747.0,0.01919887]
[1659236779152,0.079,23751.0,23747.0,0.01919887]
[1659236780322,0.013323,23752.0,23747.0,0.01919887]
[1659236780553,0.000297,23753.0,23748.0,0.40725733]
[1659236780781,0.000297,23753.0,23749.0,0.603437]
[1659236781039,0.000297,23753.0,23750.0,1.2322992]
[1659236781040,0.08,23752.0,23750.0,1.2322992]
[1659236781277,0.08,23752.0,23751.0,1.01069433]
[1659236781518,0.08,23752.0,23751.0,0.92109733]
[1659236781953,0.08,23752.0,23751.0,0.92080033]
[1659236782432,0.53832176,23760.0,23751.0,1.22080033]
[1659236782652,0.94557909,23760.0,23752.0,0.72829733]
[1659236782876,0.94557909,23760.0,23753.0,0.40725733]
[1659236783603,0.94557909,23760.0,23754.0,0.01052]
[1659236783824,0.013323,23759.0,23754.0,0.01052]
[1659236784080,0.97343987,23760.0,23754.0,0.01052]
[1659236784760,0.013323,23759.0,23754.0,0.01052]
[1659236784983,0.97343987,23760.0,23754.0,0.01052]
[1659236784984,1.05243987,23760.0,23754.0,0.01052]
[1659236785465,0.013323,23759.0,23754.0,0.01052]
[1659236785696,1.02457909,23760.0,23754.0,0.01052]
[1659236785932,0.013323,23759.0,23754.0,0.01052]
[1659236786223,1.02457909,23760.0,23754.0,0.01052]
[1659236786462,0.94557909,23760.0,23754.0,0.01052]
[1659236786677,0.013323,23759.0,23754.0,0.01052]
[1659236786913,0.02786078,23759.0,23754.0,0.01052]
[1659236787132,1.02457909,23760.0,23754.0,0.01052]
[1659236787867,0.61732176,23760.0,23757.0,0.05]
[1659236788101,0.61732176,23760.0,23758.0,0.32263587]
[1659236788336,0.53832176,23760.0,23759.0,0.303437]
[1659236788563,0.53832176,23760.0,23759.0,0.71069433]
[1659236789050,0.61832176,23760.0,23759.0,0.40725733]
[1659236790264,0.61832176,23760.0,23758.0,0.6868002]
[1659236790488,0.61832176,23760.0,23759.0,0.303437]
[1659236790713,0.61832176,23760.0,23759.0,0.40725733]
[1659236790935,0.53832176,23760.0,23759.0,0.40725733]
[1659236791644,0.53832176,23760.0,23759.0,0.71069433]
[1659236791862,0.53832176,23760.0,23759.0,0.71078147]
[1659236792297,0.53832176,23760.0,23759.0,1.01078147]
[1659236792577,0.53832176,23760.0,23759.0,1.46078147]
[1659236792769,0.50687186,23760.0,23759.0,1.49238147]
[1659236792995,0.50687186,23760.0,23759.0,1.58426621]
[1659236793219,0.3580959,23760.0,23759.0,1.58426621]
[1659236793445,0.2826959,23760.0,23759.0,1.58426621]
[1659236793654,0.001,23765.0,23764.0,0.05]
[1659236793933,0.001,23765.0,23764.0,0.79228433]
[1659236794154,0.001,23765.0,23764.0,0.40725733]
[1659236794382,0.001,23765.0,23764.0,0.71069433]
[1659236795103,0.001,23765.0,23764.0,1.10898032]
[1659236795563,0.001,23765.0,23764.0,1.67278032]
[1659236796002,0.001,23765.0,23764.0,1.70437032]
[1659236796219,0.001,23765.0,23764.0,1.59378032]
[1659236796914,0.001,23765.0,23764.0,1.67378032]
[1659236797574,0.001,23765.0,23764.0,1.72378032]
[1659236798292,0.001,23765.0,23764.0,1.64378032]
[1659236798971,0.001,23765.0,23764.0,1.72378032]
[1659236799219,0.001,23765.0,23764.0,1.67378032]
[1659236800108,0.001,23765.0,23764.0,1.67345732]
[1659236800348,0.001,23765.0,23764.0,1.59345732]
[1659236801047,0.001,23765.0,23764.0,1.63245732]
[1659236801996,0.001,23765.0,23764.0,1.68245732]
[1659236802215,0.001,23765.0,23764.0,1.63845732]
[1659236802983,0.001,23765.0,23764.0,1.37902032]
[1659236803207,0.001,23765.0,23764.0,1.68245732]
[1659236804370,0.001,23765.0,23764.0,1.63845732]
[1659236805029,0.001,23765.0,23764.0,1.68245732]
[1659236806170,0.001,23765.0,23764.0,1.63245732]
[1659236806415,0.001,23765.0,23764.0,1.58845732]
[1659236807064,0.001,23765.0,23764.0,1.63245732]
[1659236807278,0.001,23765.0,23764.0,1.63445732]
[1659236808425,0.001,23765.0,23764.0,1.59045732]
[1659236809111,0.001,23765.0,23764.0,1.63445732]
[1659236809567,0.001,23765.0,23764.0,1.31517133]
[1659236809784,0.001,23765.0,23764.0,0.7705702]
[1659236810047,0.001,23765.0,23764.0,0.046]
[1659236810544,0.0164743,23765.0,23764.0,0.046]
[1659236810798,0.47373163,23765.0,23764.0,0.002]
[1659236811027,1.01073163,23765.0,23764.0,0.002]
[1659236811261,1.02405463,23765.0,23758.0,0.01052]
[1659236811482,1.02405463,23765.0,23754.0,0.010521]
[1659236811483,0.12786078,23759.0,23754.0,0.010521]
[1659236811713,0.3,23758.0,23754.0,0.010521]
[1659236811941,0.12786078,23755.0,23754.0,0.010521]
[1659236812203,0.0154743,23757.0,23754.0,0.010521]
[1659236813111,0.013323,23756.0,23754.0,0.010521]
[1659236813344,0.12786078,23755.0,23753.0,0.010521]
[1659236813548,0.12786078,23755.0,23753.0,0.41777833]
[1659236813771,0.054,23757.0,23753.0,0.41777833]
[1659236814260,0.55,23760.0,23753.0,0.41777833]
[1659236814485,0.013323,23759.0,23754.0,0.40725733]
[1659236814732,0.3,23760.0,23754.0,0.41777833]
[1659236814950,0.379,23760.0,23754.0,0.41777833]
[1659236815184,0.379,23760.0,23754.0,0.43042181]
[1659236815871,0.379,23760.0,23755.0,0.70725733]
[1659236815872,0.10686078,23760.0,23755.0,0.70725733]
[1659236816079,0.10686078,23760.0,23756.0,0.40725733]
[1659236816293,0.10686078,23760.0,23757.0,0.01919887]
[1659236816529,0.10686078,23760.0,23757.0,0.01264348]
[1659236816744,0.02786078,23760.0,23757.0,0.01264348]
[1659236816985,0.079,23760.0,23757.0,0.01264348]
[1659236817225,0.10686078,23760.0,23757.0,0.01264348]
[1659236817450,0.079,23760.0,23758.0,0.01919887]
[1659236817659,0.05,23759.0,23758.0,0.01919887]
[1659236817897,0.10686078,23760.0,23758.0,0.01919887]
[1659236818762,0.0154743,23759.0,23757.0,0.02316248]
[1659236819014,0.05,23759.0,23757.0,0.02316248]
[1659236819073,0.10686078,23760.0,23757.0,0.02316248]
[1659236819566,0.0154743,23759.0,23757.0,0.010519]
[1659236819567,0.10686078,23760.0,23757.0,0.010519]
[1659236819771,0.079,23760.0,23757.0,0.010519]
[1659236820227,0.3,23762.0,23757.0,0.010519]
[1659236820574,0.02786078,23760.0,23757.0,0.010519]
[1659236820845,0.0287973,23759.0,23757.0,0.010519]
[1659236821077,0.0154743,23759.0,23757.0,0.010519]
[1659236821323,0.0154743,23759.0,23757.0,0.02971787]
[1659236821526,0.0154743,23759.0,23757.0,0.010519]
[1659236822210,0.3,23762.0,23757.0,0.02971787]
[1659236822438,0.013323,23761.0,23757.0,0.010519]
[1659236822696,0.3,23762.0,23757.0,0.010519]
[1659236822918,0.379,23762.0,23757.0,0.010519]
[1659236823138,0.013323,23761.0,23757.0,0.010519]
[1659236823383,0.079,23762.0,23758.0,0.01919887]
[1659236823608,0.079,23762.0,23759.0,0.97102433]
[1659236823834,0.079,23762.0,23760.0,0.72121033]
[1659236824060,0.079,23762.0,23760.0,0.41777333]
[1659236824286,0.02786078,23762.0,23760.0,0.41777333]
[1659236824505,0.25437128,23762.0,23760.0,0.010516]
[1659236824759,0.12786078,23761.0,23760.0,0.010516]
[1659236824988,0.14118378,23761.0,23760.0,0.010516]
[1659236825682,0.14118378,23761.0,23760.0,0.010158]
[1659236825916,0.14333508,23761.0,23760.0,0.010158]
[1659236826139,0.15665808,23761.0,23760.0,0.010158]
[1659236827049,0.23565808,23761.0,23760.0,0.010158]
[1659236827727,0.20686078,23761.0,23760.0,0.010158]
[1659236827975,0.22018378,23761.0,23760.0,0.02935687]
[1659236828203,0.20686078,23761.0,23760.0,0.010158]
[1659236828438,0.001,23765.0,23760.0,0.010158]
[1659236828656,0.013323,23764.0,23760.0,0.010158]
[1659236828873,0.40825733,23765.0,23760.0,0.010158]
[1659236829084,0.079,23761.0,23760.0,0.010158]
[1659236829966,0.079,23761.0,23760.0,0.41741533]
[1659236830385,0.0154743,23762.0,23760.0,0.41741533]
[1659236830605,0.02786078,23762.0,23760.0,0.41741533]
[1659236830816,0.001,23765.0,23760.0,0.41741533]
[1659236831040,0.079,23761.0,23760.0,0.41741533]
[1659236832233,0.25531027,23765.0,23760.0,0.41741533]
[1659236832380,0.013323,23764.0,23760.0,0.41741533]
[1659236832608,0.0154743,23763.0,23760.0,0.41741533]
[1659236832813,0.02786078,23763.0,23760.0,0.41741533]
[1659236833023,0.013323,23764.0,23760.0,0.41741533]
[1659236833228,0.04118378,23764.0,23760.0,0.62775833]
[1659236833433,0.02786078,23763.0,23760.0,0.62775833]
[1659236833638,0.08,23765.0,23760.0,0.62775833]
[1659236834127,0.013323,23764.0,23760.0,0.62775833]
[1659236834334,0.05,23763.0,23761.0,0.40725733]
[1659236834541,0.08,23765.0,23762.0,0.02971587]
[1659236834752,0.013323,23764.0,23762.0,0.4369732]
[1659236834975,0.079,23763.0,23762.0,0.24003587]
[1659236835188,0.079,23763.0,23762.0,1.36337368]
[1659236835427,0.079,23763.0,23762.0,1.78398868]
[1659236835639,0.079,23763.0,23762.0,1.81557868]
[1659236836303,0.001,23765.0,23762.0,1.78398868]
[1659236836519,0.001,23765.0,23763.0,0.71069433]
[1659236836740,0.001,23765.0,23764.0,1.01069433]
[1659236836963,0.053,23765.0,23764.0,0.71069433]
[1659236837819,0.053,23765.0,23764.0,1.01069433]
[1659236838294,0.001,23765.0,23764.0,1.01069433]
[1659236838955,0.053,23765.0,23764.0,1.06069433]
[1659236839187,0.053,23765.0,23764.0,1.07333781]
[1659236839834,0.01990179,23765.0,23764.0,1.15492781]
[1659236840271,0.001,23767.0,23765.0,0.26026053]
[1659236840529,0.001,23767.0,23766.0,1.2798932]
[1659236840719,0.001,23767.0,23766.0,1.6798932]
[1659236841168,0.001,23767.0,23766.0,1.7614832]
[1659236841386,0.001,23767.0,23766.0,1.2114832]
[1659236841607,0.001,23767.0,23766.0,1.0798932]
[1659236841890,0.001,23767.0,23766.0,0.7798932]
[1659236842322,0.001,23767.0,23766.0,0.7298932]
[1659236842541,0.06885,23767.0,23766.0,0.40725733]
[1659236842977,0.06885,23767.0,23766.0,0.5054562]
[1659236843422,0.001,23767.0,23766.0,0.5054562]
[1659236843880,0.001,23767.0,23766.0,0.48625733]
[1659236844698,0.001,23767.0,23766.0,0.40725733]
[1659236844916,0.001,23767.0,23766.0,0.48225733]
[1659236846261,0.001,23767.0,23766.0,0.40725733]
[1659236846698,0.001,23767.0,23766.0,0.40693933]
[1659236846918,0.001,23767.0,23766.0,0.48593933]
[1659236848025,0.001,23767.0,23766.0,0.079]
[1659236848026,0.1133,23767.0,23766.0,0.079]
[1659236848254,0.1133,23767.0,23765.0,0.021026]
[1659236848481,0.001,23767.0,23765.0,0.41777033]
[1659236848915,0.022323,23767.0,23765.0,0.48977033]
[1659236849142,0.05,23766.0,23765.0,0.48977033]
[1659236849360,0.022323,23767.0,23765.0,0.48977033]
[1659236849637,0.05018378,23767.0,23765.0,0.082513]
[1659236849850,0.12786078,23766.0,23765.0,0.082513]
[1659236850069,0.022323,23767.0,23765.0,0.072]
[1659236850732,0.014323,23767.0,23765.0,0.02971587]
[1659236850957,0.10786078,23767.0,23765.0,0.4369732]
[1659236851165,0.08,23767.0,23766.0,0.303437]
[1659236851633,0.08,23767.0,23766.0,0.71069433]
[1659236851846,0.08,23767.0,23766.0,0.71053333]
[1659236852286,0.001,23767.0,23766.0,0.40725733]
[1659236852484,0.001,23767.0,23766.0,0.4264562]
[1659236852705,0.001,23767.0,23766.0,0.40725733]
[1659236852930,0.065,23767.0,23766.0,0.40725733]
[1659236853150,0.065,23767.0,23766.0,0.71085333]
[1659236853392,0.065,23767.0,23766.0,0.7300522]
[1659236854029,0.065,23767.0,23766.0,1.0800522]
[1659236854246,0.001,23767.0,23766.0,1.0300522]
[1659236854995,0.08,23767.0,23766.0,1.0300522]
[1659236855674,0.08,23767.0,23766.0,1.0800522]
[1659236855905,0.08,23767.0,23766.0,1.1300522]
[1659236856362,0.001,23767.0,23766.0,1.1300522]
[1659236856798,0.001,23767.0,23766.0,1.0800522]
[1659236857028,0.001,23767.0,23766.0,1.2090522]
[1659236857868,0.001,23767.0,23766.0,1.1590522]
[1659236858103,0.001,23767.0,23766.0,1.2090522]
[1659236858328,0.001,23767.0,23766.0,1.1800522]
[1659236858998,0.001,23767.0,23766.0,1.2290522]
[1659236859216,0.001,23767.0,23766.0,1.2240522]
[1659236859690,0.001,23767.0,23766.0,1.26828568]
[1659236860372,0.001,23767.0,23766.0,1.21928568]
[1659236860602,0.001,23767.0,23766.0,1.18769568]
[1659236861061,0.001,23767.0,23766.0,1.26769568]
[1659236862265,0.001,23767.0,23766.0,1.18769568]
[1659236862976,0.001,23767.0,23766.0,1.26769568]
[1659236863409,0.001,23767.0,23766.0,1.2550522]
[1659236864367,0.001,23767.0,23766.0,1.1750522]
[1659236865015,0.001,23767.0,23766.0,1.2550522]
[1659236866411,0.001,23767.0,23766.0,1.1750522]
[1659236866587,0.001,23767.0,23766.0,1.18769568]
[1659236867041,0.001,23767.0,23766.0,1.26769568]
[1659236867297,0.57467981,23767.0,23766.0,1.26769568]
[1659236868211,0.57467981,23767.0,23766.0,1.29919686]
[1659236868428,0.57467981,23767.0,23766.0,1.26760686]
[1659236868872,0.57467981,23767.0,23766.0,1.18760686]
[1659236869104,0.57467981,23767.0,23766.0,1.23460686]
[1659236869592,0.57467981,23767.0,23766.0,1.26619686]
[1659236869828,0.43363214,23767.0,23766.0,1.26619686]
[1659236870286,0.43363214,23767.0,23766.0,1.21919686]
[1659236870506,0.43363214,23767.0,23766.0,1.13760686]
[1659236870721,0.43363214,23767.0,23766.0,1.12496338]
[1659236870952,0.43363214,23767.0,23766.0,1.18196338]
[1659236872352,0.43363214,23767.0,23766.0,1.12496338]
[1659236873050,0.43363214,23767.0,23766.0,1.18196338]
[1659236875064,0.43363214,23767.0,23766.0,1.23896338]
[1659236876389,0.43363214,23767.0,23766.0,1.12496338]
[1659236876693,0.43363214,23767.0,23766.0,1.17496338]
[1659236877115,0.43363214,23767.0,23766.0,1.23296338]
[1659236878206,0.43363214,23767.0,23766.0,1.17496338]
[1659236879096,0.43363214,23767.0,23766.0,1.23296338]
[1659236880190,0.43363214,23767.0,23766.0,1.17496338]
[1659236880455,0.43363214,23767.0,23766.0,1.18760686]
[1659236880696,0.43363214,23767.0,23766.0,1.18722786]
[1659236880920,0.43363214,23767.0,23766.0,1.25322786]
[1659236881142,0.37076762,23767.0,23766.0,1.25322786]
[1659236881370,0.001,23780.0,23775.0,0.55]
[1659236881588,0.001,23780.0,23776.0,1.0300522]
[1659236881825,0.001,23780.0,23777.0,0.40725733]
[1659236882035,0.001,23780.0,23777.0,0.61744633]
[1659236882270,0.001,23780.0,23778.0,1.01085333]
[1659236882487,0.001,23780.0,23779.0,0.71085333]
[1659236882726,0.001,23780.0,23779.0,0.4264562]
[1659236883453,0.001,23780.0,23779.0,0.7300522]
[1659236883897,0.001,23780.0,23779.0,0.4264562]
[1659236884593,0.001,23780.0,23779.0,0.40725733]
[1659236885048,0.001,23780.0,23779.0,0.41125733]
[1659236885273,0.001,23780.0,23779.0,0.4304562]
[1659236885712,0.001,23780.0,23779.0,0.7304562]
[1659236886391,0.001,23780.0,23779.0,0.7264562]
[1659236886937,0.001,23780.0,23779.0,0.7764562]
[1659236887177,0.0164743,23780.0,23779.0,0.71785333]
[1659236887403,0.0164743,23780.0,23779.0,0.127]
[1659236888324,0.001,23780.0,23779.0,0.12]
[1659236889011,0.001,23780.0,23779.0,0.52725733]
[1659236889237,0.001,23780.0,23779.0,1.1500522]
[1659236889723,0.001,23780.0,23779.0,1.2500522]
[1659236889938,0.001,23780.0,23779.0,1.15067029]
[1659236890414,0.0164743,23780.0,23779.0,0.52725733]
[1659236891102,0.0164743,23780.0,23779.0,0.55325733]
[1659236891549,0.001,23780.0,23779.0,0.55325733]
[1659236892269,0.001,23780.0,23779.0,0.52725733]
[1659236892497,0.1133,23780.0,23779.0,0.52725733]
[1659236892954,0.1133,23780.0,23779.0,0.54925733]
[1659236895088,0.1133,23780.0,23779.0,0.58025733]
[1659236895753,0.06885,23780.0,23779.0,0.58025733]
[1659236896257,0.0843243,23780.0,23779.0,0.58025733]
[1659236896714,0.06885,23780.0,23779.0,0.58025733]
[1659236896931,0.06885,23780.0,23779.0,0.61125733]
[1659236897615,0.001,23780.0,23779.0,0.61125733]
[1659236898340,0.0164743,23780.0,23779.0,0.61125733]
[1659236899025,0.0164743,23780.0,23779.0,0.64225733]
[1659236899964,0.001,23780.0,23779.0,0.64225733]
[1659236900858,0.06885,23780.0,23779.0,0.235]
[1659236901073,0.06885,23780.0,23779.0,0.266]
[1659236903098,0.06885,23780.0,23779.0,0.297]
[1659236903584,0.001,23780.0,23779.0,0.297]
[1659236903823,0.61240763,23780.0,23779.0,0.297]
[1659236904057,0.61240763,23780.0,23779.0,1.00785333]
[1659236904290,0.61240763,23780.0,23779.0,0.70425733]
[1659236904948,0.61240763,23780.0,23779.0,0.74025733]
[1659236905188,0.61240763,23780.0,23779.0,1.44025733]
[1659236905414,0.58045347,23780.0,23779.0,1.80649681]
[1659236905638,0.58045347,23780.0,23779.0,1.83806681]
[1659236906804,0.58045347,23780.0,23779.0,1.80649681]
[1659236907035,0.58045347,23780.0,23779.0,1.58806681]
[1659236907270,0.58045347,23780.0,23779.0,1.57542333]
[1659236908222,0.58045347,23780.0,23779.0,1.31242333]
[1659236910528,0.58045347,23780.0,23779.0,1.28085333]
[1659236910747,0.58045347,23780.0,23779.0,0.83085333]
[1659236910966,0.58045347,23780.0,23779.0,0.87485333]
[1659236911645,0.58045347,23780.0,23779.0,0.83085333]
[1659236912332,0.58045347,23780.0,23779.0,1.18085333]
[1659236912579,0.58045347,23780.0,23779.0,1.23085333]
[1659236913013,0.58045347,23780.0,23779.0,1.25985333]
[1659236913965,0.58045347,23780.0,23779.0,1.23085333]
[1659236914419,0.58045347,23780.0,23779.0,1.28085333]
[1659236915111,0.58045347,23780.0,23779.0,1.31285333]
[1659236915563,0.001,23784.0,23783.0,0.05]
[1659236915785,0.001,23784.0,23783.0,0.86085333]
[1659236915786,0.00117855,23784.0,23783.0,0.86085333]
[1659236916014,0.00117855,23784.0,23783.0,1.19269568]
[1659236916506,0.00117855,23784.0,23783.0,1.1800522]
[1659236916727,0.001,23784.0,23783.0,1.1800522]
[1659236916948,0.001,23784.0,23783.0,1.2170522]
[1659236918344,0.001,23784.0,23783.0,1.1800522]
[1659236919026,0.001,23784.0,23783.0,1.2140522]
[1659236920393,0.001,23784.0,23783.0,1.1800522]
[1659236920854,0.001,23784.0,23783.0,1.1300522]
[1659236921071,0.001,23784.0,23783.0,1.18969563]
[1659236922227,0.001,23784.0,23783.0,1.14269563]
[1659236922468,0.001,23784.0,23783.0,0.40725733]
[1659236922469,0.1133,23784.0,23783.0,0.40725733]
[1659236922929,0.1133,23784.0,23783.0,0.44325733]
[1659236924141,0.001,23784.0,23783.0,0.49325733]
[1659236924389,0.001,23784.0,23783.0,1.12349681]
[1659236924619,0.001,23784.0,23783.0,0.80725733]
[1659236924851,0.001,23784.0,23783.0,1.0120645]
[1659236925086,0.001,23784.0,23783.0,1.10685333]
[1659236925333,0.001,23784.0,23783.0,1.15685333]
[1659236926025,0.001,23784.0,23783.0,1.05685333]
[1659236926257,0.001,23784.0,23783.0,1.01085333]
[1659236926493,0.001,23784.0,23783.0,0.71085333]
[1659236926970,0.001,23784.0,23783.0,1.05585333]
[1659236927832,0.001,23784.0,23783.0,0.75585333]
[1659236928311,0.001,23784.0,23783.0,0.71085333]
[1659236930478,0.001,23784.0,23783.0,0.75585333]
[1659236931413,0.001,23784.0,23783.0,0.80085333]
[1659236931630,0.001,23784.0,23783.0,0.71085333]
[1659236933042,0.001,23784.0,23783.0,0.74085333]
[1659236933919,0.001,23784.0,23783.0,0.7420645]
[1659236934364,0.001,23784.0,23783.0,0.7120645]
[1659236934877,0.06885,23784.0,23783.0,0.40725733]
[1659236935092,0.001,23784.0,23783.0,0.43725733]
[1659236935561,0.001,23784.0,23783.0,0.4267443]
[1659236936027,0.1287743,23784.0,23783.0,0.4267443]
[1659236936254,0.1287743,23784.0,23782.0,0.010504]
[1659236936976,0.1287743,23784.0,23782.0,0.057504]
[1659236938177,0.0164743,23784.0,23782.0,0.057504]
[1659236938409,0.0164743,23784.0,23782.0,0.010504]
[1659236938631,0.01346,23783.0,23782.0,0.010504]
[1659236938873,0.14132078,23783.0,23782.0,0.010504]
[1659236939116,0.14132078,23783.0,23782.0,0.057504]
[1659236939574,0.12786078,23783.0,23782.0,0.057504]
[1659236939797,0.0164743,23784.0,23782.0,0.057504]
[1659236940012,0.01346,23783.0,23782.0,0.057504]
[1659236940240,0.0164743,23784.0,23782.0,0.010504]
[1659236940464,0.14132078,23783.0,23782.0,0.010504]
[1659236940689,0.12786078,23783.0,23782.0,0.010504]
[1659236940903,0.14132078,23783.0,23782.0,0.057504]
[1659236942545,0.14132078,23783.0,23782.0,0.010504]
[1659236942991,0.14132078,23783.0,23782.0,0.073504]
[1659236943218,0.12786078,23783.0,23782.0,0.09276342]
[1659236943437,0.001,23784.0,23782.0,0.073504]